fUSD/lending_fUSD_20260505
["ID","MTS","AMOUNT","RATE_DAILY","PERIOD"]
[421602195,1777938762000,-335.59,0.00042837,120]
[421602200,1777938762000,-500.0,0.00042874,60]
[421602198,1777938762000,-151.0,0.00042874,60]
[421602188,1777938762000,-200.0,0.00042785,2]
[421602199,1777938762000,-7965.41053268,0.00042874,60]
[421602202,1777938762000,-322.79448827,0.00042887,30]
[421602212,1777938762000,-500.0,0.00042999,30]
[421602213,1777938762000,-156.587,0.00042999,30]
[421602203,1777938762000,-1913.838722,0.000429,120]
[421602191,1777938762000,-227.87315076,0.000428,120]
[421602235,1777938762000,-391.72223682,0.00042999,120]
[421602245,1777938762000,-172.53272177,0.00042999,90]
[421602234,1777938762000,-537.6845,0.00042999,90]
[421602273,1777938762000,-353.56939945,0.00043,120]
[421602275,1777938762000,-2801.46162241,0.00043,120]
[421602272,1777938762000,-445.65077342,0.00043,120]
[421602280,1777938762000,-5000.0,0.00043,60]
[421602278,1777938762000,-152.0,0.00043,120]
[421602281,1777938762000,-2008.86920005,0.00043,120]
[421602282,1777938762000,-2050.02008801,0.00043,120]
[421602289,1777938762000,-952.0,0.00043,120]
[421602290,1777938762000,-211.92,0.00043014,120]
[421602283,1777938762000,-2478.829,0.00043,90]
[421602284,1777938762000,-2478.829,0.00043,90]
[421602287,1777938762000,-1400.0,0.00043,120]
[421602291,1777938762000,-700.0,0.00043018,120]
[421602288,1777938762000,-453.0,0.00043,120]
[421602286,1777938762000,-705.92773234,0.00043,120]
[421602279,1777938762000,-325.97,0.00043,30]
[421602285,1777938762000,-2478.82,0.00043,90]
[421602292,1777938762000,-335.59,0.00043037,120]
[421602296,1777938762000,-152.9315034,0.00043041,120]
[421602295,1777938762000,-200.13112258,0.00043039,30]
[421602294,1777938762000,-899.1425904,0.00043039,30]
[421602302,1777938762000,-2953.3312834,0.00043144,120]
[421602293,1777938762000,-150.0,0.00043039,30]
[421602303,1777938762000,-410.87,0.00043148,2]
[421602298,1777938762000,-172.28,0.000431,30]
[421602301,1777938762000,-152.9315034,0.00043137,120]
[421602299,1777938762000,-4476.77834594,0.000431,120]
[421602238,1777938762000,-500.0,0.00042999,120]
[421602300,1777938762000,-335.59,0.00043137,120]
[421602274,1777938762000,-461.66622785,0.00043,30]
[421602271,1777938762000,-839.63293007,0.00043,120]
[421602297,1777938762000,-152.9315034,0.00043089,120]
[421602276,1777938762000,-505.46905252,0.00043,120]
[421602269,1777938762000,-180.90749178,0.00043,120]
[421602246,1777938762000,-162.380719,0.00042999,90]
[421602244,1777938762000,-156.587,0.00042999,30]
[421602247,1777938762000,-168.3888056,0.00042999,120]
[421602242,1777938762000,-151.0,0.00042999,120]
[421602243,1777938762000,-176.29,0.00042999,30]
[421602248,1777938762000,-1037.0,0.00042999,30]
[421602252,1777938762000,-5047.40094173,0.00043,10]
[421602249,1777938762000,-1000.0,0.00042999,120]
[421602251,1777938762000,-10000.0,0.00043,15]
[421602250,1777938762000,-12300.70681097,0.00043,14]
[421602264,1777938762000,-646.34497443,0.00043,120]
[421602258,1777938762000,-168.29,0.00043,5]
[421602256,1777938762000,-214.0,0.00043,7]
[421602241,1777938762000,-403.33393169,0.00042999,30]
[421602259,1777938762000,-1141.4,0.00043,120]
[421602270,1777938762000,-1890.0515138,0.00043,120]
[421602268,1777938762000,-739.33811983,0.00043,120]
[421602277,1777938762000,-25280.94,0.00043,2]
[421602267,1777938762000,-769.61780229,0.00043,120]
[421602253,1777938762000,-2909.4022192,0.00043,7]
[421602265,1777938762000,-2631.48018876,0.00043,120]
[421602266,1777938762000,-297.89849772,0.00043,120]
[421602261,1777938762000,-1181.474,0.00043,90]
[421602260,1777938762000,-1054.238016,0.00043,120]
[421602262,1777938762000,-50000.0,0.00043,30]
[421602257,1777938762000,-10019.54130521,0.00043,7]
[421602254,1777938762000,-370.32656121,0.00043,7]
[421602255,1777938762000,-370.32656121,0.00043,7]
[421602263,1777938762000,-30000.0,0.00043,60]
[421602344,1777938763000,-860.26,0.00043443,120]
[421602345,1777938763000,-1386671.0999,0.00043444,30]
[421602351,1777938763000,-310.0,0.00043452,120]
[421602343,1777938763000,-335.59,0.00043437,120]
[421602352,1777938763000,-310.0,0.00043452,120]
[421602338,1777938763000,-1118.0,0.00043378,30]
[421602342,1777938763000,-153.0,0.000434,120]
[421602336,1777938763000,-1000.0,0.00043377,30]
[421602337,1777938763000,-152.9315034,0.00043378,120]
[421602335,1777938763000,-151.0,0.00043377,30]
[421602333,1777938763000,-251.0,0.00043377,30]
[421602341,1777938763000,-1000.0,0.000434,120]
[421602347,1777938763000,-310.0,0.00043452,120]
[421602355,1777938763000,-162.16,0.00043452,120]
[421602349,1777938763000,-310.0,0.00043452,120]
[421602348,1777938763000,-310.0,0.00043452,120]
[421602350,1777938763000,-310.0,0.00043452,120]
[421602353,1777938763000,-310.0,0.00043452,120]
[421602356,1777938763000,-805.71,0.00043467,120]
[421602357,1777938763000,-44656.0330876,0.0004348,30]
[421602361,1777938763000,-1000.0,0.00043487,120]
[421602359,1777938763000,-984.19145689,0.00043487,120]
[421602358,1777938763000,-1715.0,0.00043487,30]
[421602360,1777938763000,-700.59684562,0.00043487,120]
[421602354,1777938763000,-310.0,0.00043452,120]
[421602364,1777938763000,-1000.0,0.00043487,120]
[421602334,1777938763000,-170.0,0.00043377,30]
[421602346,1777938763000,-310.0,0.00043452,120]
[421602339,1777938763000,-151.0,0.00043378,60]
[421602328,1777938763000,-151.0,0.00043377,30]
[421602332,1777938763000,-151.0,0.00043377,30]
[421602304,1777938763000,-152.9315034,0.00043185,120]
[421602308,1777938763000,-335.59,0.00043237,120]
[421602305,1777938763000,-979.28,0.000432,120]
[421602307,1777938763000,-152.9315034,0.00043233,120]
[421602310,1777938763000,-152.9315034,0.00043282,120]
[421602306,1777938763000,-7440.74394139,0.00043209,120]
[421602309,1777938763000,-226.57,0.0004325,120]
[421602313,1777938763000,-500.0,0.00043287,21]
[421602312,1777938763000,-500.0,0.00043287,120]
[421602311,1777938763000,-500.0,0.00043287,120]
[421602316,1777938763000,-1696.94820753,0.000433,120]
[421602314,1777938763000,-6271.38077955,0.000433,120]
[421602315,1777938763000,-1000.0,0.000433,120]
[421602317,1777938763000,-170001.346015,0.000433,120]
[421602319,1777938763000,-152.9315034,0.0004333,120]
[421602326,1777938763000,-151.0,0.00043377,30]
[421602322,1777938763000,-6888.0,0.00043377,30]
[421602320,1777938763000,-335.59,0.00043337,120]
[421602324,1777938763000,-500.0,0.00043377,30]
[421602318,1777938763000,-505.0,0.0004332,19]
[421602329,1777938763000,-151.0,0.00043377,30]
[421602321,1777938763000,-500.0,0.00043377,30]
[421602323,1777938763000,-200.0,0.00043377,30]
[421602325,1777938763000,-1030.0,0.00043377,30]
[421602327,1777938763000,-670.58624095,0.00043377,30]
[421602340,1777938763000,-1380.5126,0.000434,120]
[421602330,1777938763000,-500.0,0.00043377,30]
[421602331,1777938763000,-500.0,0.00043377,30]
[421602362,1777938763000,-1000.0,0.00043487,120]
[421602365,1777938763000,-1000.0,0.00043487,120]
[421602367,1777938763000,-1124.18,0.00043487,120]
[421602396,1777938763000,-356.97014451,0.00043562,120]
[421602398,1777938763000,-150.0,0.000436,5]
[421602397,1777938763000,-805.99419244,0.00043567,120]
[421602399,1777938763000,-196.10431375,0.000436,5]
[421602401,1777938763000,-187319.44773168,0.000436,120]
[421602400,1777938763000,-2500.0,0.000436,120]
[421602406,1777938763000,-200.0,0.00043636,2]
[421602407,1777938763000,-335.59,0.00043637,120]
[421602404,1777938763000,-458.3,0.00043634,120]
[421602408,1777938763000,-860.26,0.00043643,120]
[421602405,1777938763000,-150.0,0.00043636,120]
[421602409,1777938763000,-152.0,0.00043645,6]
[421602410,1777938763000,-145009.0,0.0004365,60]
[421602412,1777938763000,-3182.68453902,0.000437,120]
[421602411,1777938763000,-1000.0,0.0004368,120]
[421602413,1777938763000,-335.59,0.00043737,120]
[421602414,1777938763000,-4276.75,0.00043741,2]
[421602417,1777938763000,-512.92320553,0.000438,30]
[421602416,1777938763000,-231.11,0.0004375,120]
[421602418,1777938763000,-1000.0,0.000438,30]
[421602420,1777938763000,-50000.0,0.000438,33]
[421602419,1777938763000,-1525.26015288,0.000438,30]
[421602421,1777938763000,-100000.0,0.000438,90]
[421602424,1777938763000,-646.88,0.00043835,2]
[421602422,1777938763000,-100000.0,0.000438,100]
[421602423,1777938763000,-39020.5217289,0.000438,120]
[421602363,1777938763000,-1000.0,0.00043487,120]
[421602395,1777938763000,-500.0,0.00043561,120]
[421602391,1777938763000,-287.0,0.00043554,120]
[421602415,1777938763000,-860.26,0.00043743,120]
[421602394,1777938763000,-482.0,0.00043554,120]
[421602377,1777938763000,-335.59,0.00043537,120]
[421602393,1777938763000,-156.0,0.00043554,120]
[421602366,1777938763000,-1000.0,0.00043487,120]
[421602369,1777938763000,-7246.81157366,0.000435,10]
[421602368,1777938763000,-150.0,0.000435,5]
[421602371,1777938763000,-1000.0,0.000435,90]
[421602372,1777938763000,-503.33894453,0.000435,120]
[421602374,1777938763000,-50000.0,0.000435,32]
[421602373,1777938763000,-2261.1658227,0.000435,120]
[421602375,1777938763000,-500.0,0.000435,120]
[421602376,1777938763000,-780.79791875,0.000435,120]
[421602378,1777938763000,-5345.94,0.00043539,2]
[421602389,1777938763000,-204.0,0.00043554,120]
[421602380,1777938763000,-860.26,0.00043543,120]
[421602370,1777938763000,-1000.0,0.000435,30]
[421602403,1777938763000,-152.0,0.000436,120]
[421602392,1777938763000,-153.0,0.00043554,120]
[421602382,1777938763000,-500.0,0.00043553,120]
[421602402,1777938763000,-88873.31432938,0.000436,120]
[421602384,1777938763000,-177.0,0.00043554,120]
[421602388,1777938763000,-465.0,0.00043554,120]
[421602387,1777938763000,-203.0,0.00043554,120]
[421602385,1777938763000,-159.0,0.00043554,120]
[421602381,1777938763000,-500.0,0.00043553,120]
[421602383,1777938763000,-500.0,0.00043553,120]
[421602390,1777938763000,-159.0,0.00043554,120]
[421602379,1777938763000,-8197.1,0.00043539,2]
[421602386,1777938763000,-152.0,0.00043554,120]
[421602474,1777938764000,-918.0,0.00043836,120]
[421602464,1777938764000,-605.0,0.00043836,120]
[421602461,1777938764000,-605.0,0.00043836,120]
[421602463,1777938764000,-605.0,0.00043836,120]
[421602473,1777938764000,-918.0,0.00043836,120]
[421602455,1777938764000,-605.0,0.00043836,120]
[421602462,1777938764000,-605.0,0.00043836,120]
[421602454,1777938764000,-605.0,0.00043836,120]
[421602451,1777938764000,-605.0,0.00043836,120]
[421602460,1777938764000,-605.0,0.00043836,120]
[421602465,1777938764000,-605.0,0.00043836,120]
[421602472,1777938764000,-918.0,0.00043836,120]
[421602466,1777938764000,-605.0,0.00043836,120]
[421602488,1777938764000,-918.0,0.00043836,120]
[421602469,1777938764000,-1612.0,0.00043836,100]
[421602471,1777938764000,-9740.0,0.00043836,30]
[421602467,1777938764000,-605.0,0.00043836,120]
[421602475,1777938764000,-918.0,0.00043836,120]
[421602478,1777938764000,-918.0,0.00043836,120]
[421602477,1777938764000,-918.0,0.00043836,120]
[421602476,1777938764000,-918.0,0.00043836,120]
[421602487,1777938764000,-918.0,0.00043836,120]
[421602486,1777938764000,-918.0,0.00043836,120]
[421602480,1777938764000,-918.0,0.00043836,120]
[421602483,1777938764000,-918.0,0.00043836,120]
[421602481,1777938764000,-918.0,0.00043836,120]
[421602458,1777938764000,-605.0,0.00043836,120]
[421602470,1777938764000,-150.0,0.00043836,120]
[421602457,1777938764000,-605.0,0.00043836,120]
[421602426,1777938764000,-646.88,0.00043835,2]
[421602452,1777938764000,-605.0,0.00043836,120]
[421602479,1777938764000,-918.0,0.00043836,120]
[421602425,1777938764000,-646.88,0.00043835,2]
[421602428,1777938764000,-646.88,0.00043835,2]
[421602429,1777938764000,-646.88,0.00043835,2]
[421602427,1777938764000,-646.88,0.00043835,2]
[421602432,1777938764000,-646.88,0.00043835,2]
[421602431,1777938764000,-646.88,0.00043835,2]
[421602430,1777938764000,-646.88,0.00043835,2]
[421602433,1777938764000,-646.88,0.00043835,2]
[421602435,1777938764000,-646.88,0.00043835,2]
[421602436,1777938764000,-646.88,0.00043835,2]
[421602434,1777938764000,-646.88,0.00043835,2]
[421602437,1777938764000,-646.88,0.00043835,2]
[421602456,1777938764000,-605.0,0.00043836,120]
[421602439,1777938764000,-646.88,0.00043835,2]
[421602440,1777938764000,-646.88,0.00043835,2]
[421602449,1777938764000,-605.0,0.00043836,120]
[421602441,1777938764000,-646.88,0.00043835,2]
[421602442,1777938764000,-646.88,0.00043835,2]
[421602443,1777938764000,-646.88,0.00043835,2]
[421602447,1777938764000,-646.89634764,0.00043835,2]
[421602445,1777938764000,-646.88,0.00043835,2]
[421602444,1777938764000,-646.88,0.00043835,2]
[421602446,1777938764000,-646.88,0.00043835,2]
[421602448,1777938764000,-22300.38365936,0.00043836,30]
[421602450,1777938764000,-605.0,0.00043836,120]
[421602453,1777938764000,-605.0,0.00043836,120]
[421602459,1777938764000,-605.0,0.00043836,120]
[421602438,1777938764000,-646.88,0.00043835,2]
[421602482,1777938764000,-918.0,0.00043836,120]
[421602468,1777938764000,-605.0,0.00043836,120]
[421602484,1777938764000,-918.0,0.00043836,120]
[421602517,1777938764000,-150.0,0.00044,120]
[421602519,1777938764000,-500.0,0.00044,120]
[421602518,1777938764000,-71089.80857385,0.00044,2]
[421602524,1777938764000,-385191.3530499,0.00044,2]
[421602522,1777938764000,-164.08909567,0.00044,120]
[421602525,1777938764000,-12000.0,0.00044,30]
[421602527,1777938764000,-4010.0,0.00044,60]
[421602526,1777938764000,-4550.33635479,0.00044,30]
[421602529,1777938764000,-36404.60421553,0.00044,120]
[421602539,1777938764000,-335.59,0.00044037,120]
[421602528,1777938764000,-50000.0,0.00044,30]
[421602533,1777938764000,-4877.78540964,0.00044,120]
[421602535,1777938764000,-3029.84566128,0.00044,120]
[421602523,1777938764000,-211.47214496,0.00044,120]
[421602534,1777938764000,-2204.02626418,0.00044,120]
[421602538,1777938764000,-570.016013,0.00044,57]
[421602531,1777938764000,-30000.0,0.00044,30]
[421602530,1777938764000,-500.0,0.00044,120]
[421602537,1777938764000,-10000.0,0.00044,30]
[421602532,1777938764000,-6649.87920648,0.00044,120]
[421602540,1777938764000,-860.26,0.00044043,120]
[421602542,1777938764000,-423.28190478,0.000441,120]
[421602543,1777938764000,-666.58957547,0.00044114,120]
[421602544,1777938764000,-335.59,0.00044137,120]
[421602545,1777938764000,-860.26,0.00044143,120]
[421602546,1777938764000,-989.38,0.00044165,7]
[421602547,1777938764000,-13583.73494698,0.000442,7]
[421602485,1777938764000,-918.0,0.00043836,120]
[421602536,1777938764000,-800.0,0.00044,120]
[421602520,1777938764000,-1000.0,0.00044,30]
[421602541,1777938764000,-47597.92788186,0.00044077,7]
[421602515,1777938764000,-570.09280812,0.00044,120]
[421602521,1777938764000,-500.0,0.00044,120]
[421602490,1777938764000,-918.0,0.00043836,120]
[421602501,1777938764000,-224.1569363,0.000439,30]
[421602500,1777938764000,-2500.0,0.000439,120]
[421602491,1777938764000,-918.0,0.00043836,120]
[421602493,1777938764000,-918.0,0.00043836,120]
[421602489,1777938764000,-918.0,0.00043836,120]
[421602495,1777938764000,-928.28115565,0.00043836,120]
[421602498,1777938764000,-5000.0,0.000439,120]
[421602499,1777938764000,-199999.99999909,0.000439,120]
[421602494,1777938764000,-918.0,0.00043836,120]
[421602496,1777938764000,-335.59,0.00043837,120]
[421602548,1777938764000,-2500.0,0.000442,120]
[421602497,1777938764000,-860.26,0.00043843,120]
[421602492,1777938764000,-918.0,0.00043836,120]
[421602505,1777938764000,-860.26,0.00043943,120]
[421602502,1777938764000,-850.97353033,0.000439,120]
[421602511,1777938764000,-1500.0,0.0004399,120]
[421602513,1777938764000,-22554.18965282,0.00044,30]
[421602508,1777938764000,-500.0,0.00043972,120]
[421602509,1777938764000,-5642.0,0.00043975,120]
[421602503,1777938764000,-496.0,0.00043917,30]
[421602516,1777938764000,-5000.0,0.00044,120]
[421602512,1777938764000,-1500.0,0.0004399,120]
[421602510,1777938764000,-1500.0,0.0004399,120]
[421602507,1777938764000,-355.439657,0.00043966,103]
[421602504,1777938764000,-335.59,0.00043937,120]
[421602514,1777938764000,-150.0,0.00044,120]
[421602506,1777938764000,-1099.0,0.00043953,120]
[421602584,1777938765000,-203.0,0.00044554,120]
[421602582,1777938765000,-159.0,0.00044554,120]
[421602580,1777938765000,-860.26,0.00044543,120]
[421602575,1777938765000,-2120.01695112,0.000445,120]
[421602577,1777938765000,-2967.5,0.00044528,120]
[421602581,1777938765000,-177.0,0.00044554,120]
[421602585,1777938765000,-465.0,0.00044554,120]
[421602576,1777938765000,-198.31176496,0.000445,30]
[421602578,1777938765000,-3651.14326479,0.00044532,120]
[421602579,1777938765000,-335.59,0.00044537,120]
[421602587,1777938765000,-159.0,0.00044554,120]
[421602586,1777938765000,-204.0,0.00044554,120]
[421602594,1777938765000,-153.64677744,0.00044581,87]
[421602589,1777938765000,-153.0,0.00044554,120]
[421602583,1777938765000,-152.0,0.00044554,120]
[421602593,1777938765000,-539.0,0.00044574,30]
[421602591,1777938765000,-482.0,0.00044554,120]
[421602590,1777938765000,-156.0,0.00044554,120]
[421602592,1777938765000,-3000.0,0.0004456,71]
[421602574,1777938765000,-100000.0,0.000445,110]
[421602596,1777938765000,-1281.4899,0.000446,90]
[421602588,1777938765000,-287.0,0.00044554,120]
[421602572,1777938765000,-1401.98149734,0.000445,120]
[421602557,1777938765000,-860.26,0.00044343,120]
[421602567,1777938765000,-4170.0,0.0004447,71]
[421602595,1777938765000,-668.57331742,0.0004459,120]
[421602550,1777938765000,-152.0,0.000442,120]
[421602549,1777938765000,-50000.0,0.000442,35]
[421602551,1777938765000,-153.0,0.000442,120]
[421602553,1777938765000,-860.26,0.00044243,120]
[421602552,1777938765000,-335.59,0.00044237,120]
[421602559,1777938765000,-175.0,0.00044363,30]
[421602561,1777938765000,-505.0,0.00044398,20]
[421602555,1777938765000,-307.97410741,0.0004429,2]
[421602558,1777938765000,-3342.112,0.00044353,120]
[421602573,1777938765000,-2500.0,0.000445,120]
[421602554,1777938765000,-162.91105888,0.0004425,120]
[421602556,1777938765000,-335.59,0.00044337,120]
[421602563,1777938765000,-464430.59704631,0.0004444,120]
[421602562,1777938765000,-335.59,0.00044437,120]
[421602564,1777938765000,-84367.84637505,0.0004444,120]
[421602565,1777938765000,-860.26,0.00044443,120]
[421602566,1777938765000,-500.0,0.00044444,120]
[421602570,1777938765000,-226.32177765,0.000445,15]
[421602569,1777938765000,-220.0,0.000445,10]
[421602568,1777938765000,-500.0,0.000445,120]
[421602571,1777938765000,-50000.0,0.000445,30]
[421602560,1777938765000,-204.714154,0.00044383,120]
[421602598,1777938765000,-624.9,0.000446,120]
[421602604,1777938765000,-335.59,0.00044737,120]
[421602635,1777938765000,-251.20022075,0.00045,4]
[421602625,1777938765000,-7886.5,0.00045,120]
[421602626,1777938765000,-9624.0,0.00045,60]
[421602623,1777938765000,-100000.0,0.00045,2]
[421602630,1777938765000,-559.35717861,0.00045,120]
[421602641,1777938765000,-35687.11848354,0.00045,30]
[421602629,1777938765000,-600.0,0.00045,120]
[421602631,1777938765000,-153.96649678,0.00045,30]
[421602632,1777938765000,-614.48486365,0.00045,10]
[421602634,1777938765000,-151.93126683,0.00045,30]
[421602638,1777938765000,-8605.86508226,0.00045,120]
[421602622,1777938765000,-210.0,0.0004496,30]
[421602633,1777938765000,-421.44695394,0.00045,3]
[421602636,1777938765000,-10326.50296034,0.00045,120]
[421602639,1777938765000,-200863.95131985,0.00045,120]
[421602643,1777938765000,-250.0,0.00045,60]
[421602646,1777938765000,-381.0,0.00045,3]
[421602645,1777938765000,-1037.0,0.00045,120]
[421602644,1777938765000,-9995.0,0.00045,65]
[421602647,1777938765000,-4022.02444,0.00045,120]
[421602642,1777938765000,-29534.30588934,0.00045,10]
[421602648,1777938765000,-100000.0,0.00045,30]
[421602597,1777938765000,-1287.68,0.000446,120]
[421602637,1777938765000,-100000.0,0.00045,120]
[421602627,1777938765000,-581.33237426,0.00045,30]
[421602640,1777938765000,-21225.99436692,0.00045,30]
[421602621,1777938765000,-860.26,0.00044943,120]
[421602601,1777938765000,-1287.68,0.000446,90]
[421602605,1777938765000,-860.26,0.00044743,120]
[421602603,1777938765000,-860.26,0.00044643,120]
[421602599,1777938765000,-624.9,0.000446,120]
[421602602,1777938765000,-335.59,0.00044637,120]
[421602600,1777938765000,-1287.68,0.000446,90]
[421602624,1777938765000,-10000.0,0.00045,60]
[421602608,1777938765000,-152.0,0.000448,120]
[421602613,1777938765000,-5000.0,0.000449,120]
[421602606,1777938765000,-270.0571328,0.000448,30]
[421602609,1777938765000,-335.59,0.00044837,120]
[421602607,1777938765000,-2500.0,0.000448,120]
[421602628,1777938765000,-293.96217454,0.00045,120]
[421602611,1777938765000,-1500.0,0.0004488,120]
[421602612,1777938765000,-3483.49355688,0.0004489,120]
[421602615,1777938765000,-147000.0,0.000449,120]
[421602610,1777938765000,-860.26,0.00044843,120]
[421602614,1777938765000,-13860.61321749,0.000449,20]
[421602618,1777938765000,-5345.95,0.00044909,2]
[421602619,1777938765000,-8197.11,0.00044909,2]
[421602617,1777938765000,-36000.0,0.000449,120]
[421602620,1777938765000,-335.59,0.00044937,120]
[421602616,1777938765000,-764.68979283,0.000449,120]
[421602688,1777938766000,-50000.0,0.00045,30]
[421602689,1777938766000,-26791.00680635,0.00045,21]
[421602678,1777938766000,-499.40969792,0.00045,120]
[421602695,1777938766000,-378.61658723,0.00045,120]
[421602691,1777938766000,-10000.0,0.00045,30]
[421602685,1777938766000,-4291.2198456,0.00045,30]
[421602681,1777938766000,-1405.21419923,0.00045,120]
[421602683,1777938766000,-210.9667398,0.00045,30]
[421602686,1777938766000,-3565.771184,0.00045,120]
[421602679,1777938766000,-773.09268609,0.00045,80]
[421602690,1777938766000,-162.50361464,0.00045,120]
[421602684,1777938766000,-317015.72332318,0.00045,120]
[421602693,1777938766000,-604.36812182,0.00045,30]
[421602705,1777938766000,-18755.41696558,0.00045,15]
[421602702,1777938766000,-7051.10877269,0.00045,120]
[421602701,1777938766000,-500.0,0.00045,90]
[421602692,1777938766000,-921.47094961,0.00045,120]
[421602697,1777938766000,-586.11439652,0.00045,120]
[421602699,1777938766000,-2575.17905156,0.00045,120]
[421602700,1777938766000,-1925.15102323,0.00045,120]
[421602696,1777938766000,-5883.40236993,0.00045,120]
[421602698,1777938766000,-9581.46719611,0.00045,120]
[421602704,1777938766000,-153.0,0.00045,120]
[421602703,1777938766000,-100000.0,0.00045,30]
[421602714,1777938766000,-2500.0,0.000451,120]
[421602715,1777938766000,-169.02315468,0.000451,120]
[421602687,1777938766000,-276102.4499247,0.00045,120]
[421602694,1777938766000,-2213.93269992,0.00045,120]
[421602682,1777938766000,-3489.99199642,0.00045,120]
[421602651,1777938766000,-202901.2013448,0.00045,30]
[421602677,1777938766000,-23576.23866734,0.00045,120]
[421602653,1777938766000,-10300.0,0.00045,120]
[421602649,1777938766000,-32637.07869629,0.00045,60]
[421602650,1777938766000,-101858.45208435,0.00045,120]
[421602652,1777938766000,-500.0,0.00045,120]
[421602654,1777938766000,-448.0,0.00045,120]
[421602656,1777938766000,-4473.31863337,0.00045,120]
[421602655,1777938766000,-58265.96239029,0.00045,30]
[421602657,1777938766000,-2486.18380118,0.00045,14]
[421602660,1777938766000,-20000.0,0.00045,10]
[421602658,1777938766000,-150.0,0.00045,120]
[421602661,1777938766000,-500.0,0.00045,120]
[421602662,1777938766000,-921.09375875,0.00045,90]
[421602659,1777938766000,-161.30867619,0.00045,120]
[421602663,1777938766000,-1000.0,0.00045,120]
[421602664,1777938766000,-45000.0,0.00045,120]
[421602672,1777938766000,-3488.8246983,0.00045,30]
[421602665,1777938766000,-1224.00844766,0.00045,120]
[421602668,1777938766000,-1028.29721899,0.00045,120]
[421602667,1777938766000,-665.16692171,0.00045,120]
[421602666,1777938766000,-20000.0,0.00045,120]
[421602673,1777938766000,-166.82794578,0.00045,30]
[421602674,1777938766000,-163.3,0.00045,85]
[421602675,1777938766000,-717.47881507,0.00045,120]
[421602676,1777938766000,-2525.70636763,0.00045,120]
[421602671,1777938766000,-1401.20120545,0.00045,2]
[421602669,1777938766000,-20000.0,0.00045,14]
[421602670,1777938766000,-77080.00875583,0.00045,120]
[421602680,1777938766000,-164.08,0.00045,60]
[421602710,1777938766000,-860.26,0.00045043,120]
[421602764,1777938766000,-152.0,0.000454,120]
[421602713,1777938766000,-396.36422879,0.000451,120]
[421602753,1777938766000,-7440.74394139,0.00045209,120]
[421602754,1777938766000,-335.59,0.00045237,120]
[421602742,1777938766000,-1385.46,0.00045205,120]
[421602744,1777938766000,-1321.74,0.00045205,120]
[421602745,1777938766000,-401.45,0.00045205,120]
[421602746,1777938766000,-294.18,0.00045205,120]
[421602750,1777938766000,-553.36,0.00045205,120]
[421602748,1777938766000,-390.89,0.00045205,120]
[421602747,1777938766000,-417.81,0.00045205,120]
[421602752,1777938766000,-167.17,0.00045205,120]
[421602749,1777938766000,-228.86,0.00045205,120]
[421602751,1777938766000,-227.63,0.00045205,120]
[421602759,1777938766000,-249.0,0.00045321,30]
[421602757,1777938766000,-727.0,0.0004529,30]
[421602758,1777938766000,-406.80063801,0.000453,120]
[421602762,1777938766000,-161.0,0.0004538,120]
[421602760,1777938766000,-335.59,0.00045337,120]